Workbook

Sheet Introduction
D3: BSFL GHG Emissions Calculator Tool
D4: Version September 2025; by Johanna Brendow
C5: Disclaimer: Eawag and the authors assume no responsibility for errors or omissions in this document or for any actions taken based on the information provided. Eawag and the authors are not liable for any damages arising from the use of this document.
D34: Introduction
C36: This tool estimates greenhouse gas (GHG) emissions occurring in black soldier fly (BSF) systems as well as net emissions savings when comparing to landfill disposal or composting. For BSF systems it includes direct biogenic emissions from all life cycle stages of BSF and also the biogenic emissions from frass composting. It further includes indirect emissions of operating a BSF biowaste conversion system, which includes emissions from energy and fuel consumption. Following LCA principles of “cradle to gate”, the systems boundaries include: (i) the collection and pre-processing of the waste, (ii) the reproduction unit of BSF, (iii) the bioconversion of waste by the BSFL, and (iv) post-processing of BSF larvae and frass.
C37: The scope of this tool is to focus on simplified small to medium scale, mainly labour based, non-industrialised BSF biowaste conversion setups and the operational aspects of such systems, that are typical for low and middle-income countries. Biogenic emissions are estimated based on values reported in scientific literature or approved methodologies and databases for emissions estimations.
C38: The tool relies on case specific input data with regard to country and scale of operations! Use of commonly accessible technologies, equipment and practices are included, whereas high-end industrial equipment (automized processing machinery and technology, or large-scale transport fleets) are not included. Use of "heating, ventilation, and air conditioning (HVAC)" in the treatment unit is not considered, assuming suitable ambient temperature for BSF conversion!
D40: How to use the Calculator
D43: Users must enter data in orange cells | F43: Users must select an option in blue cells | H43: Users can enter data in green cells
F45: If no data is entered, the displayed default value in the white cell is applied.
D48: Please fill general information
D50: Select country: | F50: Indonesia | H50: kgCO2eq / kWh
D51: Select substrate type: | F51: pig manure (pure) | H51: =VLOOKUP(Introduction!F50, ElecMix!A:C, 3, FALSE) -> 0.6759309
D52: Ton waste / day: | F52: 10

Sheet Substrate Preparation Unit
D4: Substrate Preparation Unit | F4: Select option | G4: Enter data | H4: Optional
D6: Collection and Transport
D8: Details | E8: Vehicle type | F8: Driving distance (km/day) | G8: If your facility does not include waste substrate transport, then enter "0" in km/day
D9: Waste Transport | E9: light vehicle | F9: 10
D11: Emission | E11: kgCO₂/tkm factor | G11: kgCO₂eq / ton waste | H11: tonCO₂eq/year
D12: Transport | E12: =VLOOKUP(E9, Data!A:B,2, FALSE) -> 0.298 | G12: =F9*E12*(5/3) -> 4.966666667 | H12: =G12*Introduction!F52*365/1000 -> 18.12833333
D13: Total emission transport | G13: =G12 -> 4.966666667 | H13: =H12 -> 18.12833333
D15: Substrate Pre-processing
D17: Details | E17: Technique/type | F17: Power of machine (kW) | G17: Hours of use (daily) | H17: kWh / day
D18: Substrate Size Reduction | E18: manual | H18: =IF(OR(ISBLANK(F18), ISBLANK(G18)),"",F18*G18) -> 
D19: Substrate Mixing | E19: industrial mixer | H19: =IF(OR(ISBLANK(F19), ISBLANK(G19)),"",F19*G19) -> 
D22: Are any additives added? | E22: No
D24: Additive Quantity | E24: kg additive/ ton waste
E27: Vehicle type | F27: Driving distance (km/day)
D28: Additive Transport | E28: light vehicle
D30: Emission | E30: kWh / ton waste | G30: kgCO₂eq/ ton waste | H30: tonCO₂eq/ year
D31: Substrate Size Reduction | E31: =IF(E18="manual", Data!B10, IF(AND(E18="electric shredder", OR(ISBLANK(F18), ISBLANK(G18))), Data!B9, H18/ Introduction!F52)) -> 0 | F31: - | G31: =IF(ISNUMBER(#REF!),#REF!* Introduction!H51, E31* Introduction!H51) -> 0 | H31: =G31*Introduction!F52*365/1000 -> 0
D32: Substrate Mixing | E32: =IF(E19="manual", Data!B14, IF(AND(E19="industrial mixer", OR(ISBLANK(F19), ISBLANK(G19))), Data!B13, H19/ Introduction!F52)) -> 17.5 | F32: - | G32: =IF(ISNUMBER(#REF!),#REF!* Introduction!H51, E32* Introduction!H51) -> 11.82879075 | H32: =G32*Introduction!F52*365/1000 -> 43.17508624
D33: Bulking agent input | E33: - | F33: =IF(E22="Yes ",VLOOKUP(E28, Data!A:B,2, FALSE),"-") -> - | G33: =IF(E22="Yes ",F33*F28*(5/3)*E25/1000,0) -> 0 | H33: =G33*Introduction!F52*365/1000 -> 0
D34: Total emission pre-processing | G34: =SUM(G31:G33) -> 11.82879075 | H34: =SUM(H31:H33) -> 43.17508624
D36: Total GHG Emissions of Substrate Preparation Unit : | G36: kgCO₂eq/ ton waste : | H36: tonCO₂eq/ year :
G37: =SUM(G13,G34) -> 16.79545742 | H37: =SUM(H13,H34) -> 61.30341957

Sheet Reproduction Unit
D4: Reproduction Unit | F4: Select option | G4: Enter data | H4: Optional
D7: Feed used for the reproduction
D9: Details | E9: kg feed / kg eggs | F9: g eggs / ton waste
D10: BSF default preformance | E10: =IF(E11="", Data!B26, "") -> 37.5 | F10: =IF(F11="", Data!B28, "") -> 57.5
D11: Own preformance
E13: Type | F13: kg feed / ton waste | G13: Driving distance (km/day)
D14: Feed | E14: chicken feed (animal mix) | F14: =IFERROR((IF(E11<>"",E11,E10))*(IF(F11<>"",F11,F10)/1000),"") -> 2.15625 | G14: -
D15: Transport /Vehicle | E15: light vehicle | F15: - | G15: 10
D18: Emission | E18: kg CO₂ eq / kg feed | F18: kg CO₂ eq / tkm factor | G18: kgCO₂eq/ ton waste | H18: tonCO₂eq/ year
D19: Feed | E19: =VLOOKUP(E14,Data!A:B,2,FALSE) -> 0.97 | F19: - | G19: =E19*F14 -> 2.0915625 | H19: =G19*Introduction!F52*365/1000 -> 7.634203125
D20: Transportation | E20: - | F20: =VLOOKUP(E15, Data!A:B,2, FALSE) -> 0.298 | G20: =G15*F20*(5/3)*F14/1000 -> 0.010709375 | H20: =G20*Introduction!F52*365/1000 -> 0.03908921875
D21: Total emission Feed | G21: =SUM(G19:G20) -> 2.102271875 | H21: =SUM(H19:H20) -> 7.673292344
D23: Equipment use for reproduction
D25: Details | E25: Power (Watt) | F25: Amount | G25: Hours of use(daily)
D26: Ventilation type 1 details
D27: Ventilation type 2 details
D29: Lighting type 1 details
D30: Lighting type 2 details
D32: Emission | E32: kWh / day | F32: kWh / ton waste | G32: kgCO₂eq/ ton waste | H32: tonCO₂eq/ year
D33: Emission ventilation | E33: =IF(OR(ISBLANK(E26), ISBLANK(F26), ISBLANK(G26)),"",SUM((E26*F26*G26/1000),E27*F27*G27/1000)) ->  | F33: =IF(OR(ISBLANK(E26), ISBLANK(F26), ISBLANK(G26)), Data!B31, E33/ Introduction!F52) -> 1.76 | G33: =F33* Introduction!H51 -> 1.189638384 | H33: =G33*Introduction!F52*365/1000 -> 4.342180102
D34: Emission lighting | E34: =IF(OR(ISBLANK(E29), ISBLANK(F29), ISBLANK(G29)),"",SUM((E29*F29*G29/1000),(E30*F30*G30/1000))) ->  | F34: =IF(OR(ISBLANK(E29), ISBLANK(F29), ISBLANK(G29)), Data!B32, E34/ Introduction!F52) -> 1.1 | G34: =F34*Introduction!H51 -> 0.74352399 | H34: =G34*Introduction!F52*365/1000 -> 2.713862563
D35: Total emission infrastructure | F35: =SUM(F33:F34) -> 2.86 | G35: =SUM(G33:G34) -> 1.933162374 | H35: 7.056042665
D37: Total GHG Emissions of Reproduction Unit : | G37: kgCO₂eq/ ton waste: | H37: tonCO₂eq/ year :
G38: =SUM(G21,G35) -> 4.035434249 | H38: =SUM(H21,H35) -> 14.72933501

Sheet Treatment Unit
D4: Treatment Unit | G4: Select option | H4: Optional
D6: BSFL Treatment
D8: Substrate type | E8: pig manure (pure)
D10: Emission | E10: g / ton waste | G10: kgCO₂eq/ ton waste | H10: tonCO₂eq/ year
D11: Methane (CH₄) | E11: =VLOOKUP(E8,Data!A:D,2,FALSE) -> 258.7 | G11: =E11*0.027 -> 6.9849 | H11: =G11*Introduction!F52*365/1000 -> 25.494885
D12: N₂O | E12: =VLOOKUP(E8,Data!A:D,4,FALSE) -> 0.23 | G12: =E12*0.273 -> 0.06279 | H12: =G12*Introduction!F52*365/1000 -> 0.2291835
D13: Total BSFL treatment | G13: =SUM(G11,G12) -> 7.04769 | H13: =SUM(H11,H12) -> 25.7240685
D15: Separation
E17: Separation technique | F17: Power of machine (kW) | G17: Hours of use (daily)
D18: Separation details | E18: automated sieve
E20: kWh / day | F20: kWh / ton waste | G20: kgCO₂eq/ ton waste | H20: tonCO₂eq/ year
D21: Emission | E21: =IF(OR(ISBLANK(F18), ISBLANK(G18)),"",F18*G18) ->  | F21: =IF(E18="manual sieve", Data!B44, IF(AND(E18="automated sieve", OR(F18="", G18="")), Data!B42, IF(AND(E18="pressurized water", OR(F18="", G18="")), Data!B43, E21/ Introduction!F52)) ) -> 19.5 | G21: =IF(ISNUMBER(#REF!),#REF!* Introduction!H51, F21*Introduction!H51) -> 13.18065255 | H21: =G21*Introduction!F52*365/1000 -> 48.10938181
D22: Total emission separation | G22: =G21 -> 13.18065255 | H22: =H21 -> 48.10938181
D24: Total GHG Emissions of Treatment Unit: | G24: kgCO₂eq/ ton waste : | H24: tonCO₂eq/ year :
G25: =SUM(G13,G22) -> 20.22834255 | H25: =SUM(H13,H22) -> 73.83345031

Sheet Processing Unit
D4: Processing Unit | F4: Select option | G4: Optional
D6: Insect Processing
E8: Type of process | F8: kgCO₂eq / ton waste | G8: tonCO₂eq / year
D9: Larvae Sanitizing | E9: boiling | F9: =VLOOKUP(E9,Data!A:B,2,FALSE) -> 2.88 | G9: =F9*Introduction!F52*365/1000 -> 10.512
D10: Larvae Drying | E10: oven | F10: =VLOOKUP(E10,Data!A:B,2,FALSE) -> 17.88445568 | G10: =F10*Introduction!F52*365/1000 -> 65.27826324
D11: Total emission processing | F11: =SUM(F9:F10) -> 20.76445568 | G11: =SUM(G9:G10) -> 75.79026324
D13: Frass Composting
D15: Details | E15: Frass type | F15: kg residue / ton waste
D16: Frass default value | E16: food waste residue | F16: =IF(ISNUMBER(F17), "", IFERROR(VLOOKUP(E16, Data!A:B, 2, FALSE),"")) -> 258.86
D17: Own value | G17: =IF(F17="","",IF(F17<200,"this value is unrealistic","")) -> 
D19: Emission | E19: kg / ton waste | F19: kgCO₂eq / ton waste | G19: tonCO₂eq / year
D20: Methane (CH₄) | E20: =IF(AND(F17<>"",ISNUMBER(F17)),F17*VLOOKUP(E16,Data!A:F,4,FALSE)/1000/1000, F16*VLOOKUP(E16,Data!A:F,4,FALSE)/1000/1000) -> 0.51772 | F20: =E20*27 -> 13.97844 | G20: =F20*Introduction!F52*365/1000 -> 51.021306
D21: N₂O | E21: =IF(AND(F17<>"",ISNUMBER(F17)),F17*VLOOKUP(E16,Data!A:F,6,FALSE)/1000/1000, F16*VLOOKUP(E16,Data!A:F,6,FALSE)/1000/1000) -> 0.051772 | F21: =E21*273 -> 14.133756 | G21: =F21*Introduction!F52*365/1000 -> 51.5882094
D22: Total emission frass composting | F22: =SUM(F20:F21) -> 28.112196 | G22: =SUM(G20:G21) -> 102.6095154
D24: Total GHG Emissions of Processing Unit : | F24: kgCO₂eq/ ton waste : | G24: tonCO₂eq/ year :
F25: =SUM(F11,F22) -> 48.87665168 | G25: =SUM(G11,G22) -> 178.3997786

Sheet Conventional Emissions
D4: Conventional Emissions | F4: Select option | G4: Enter data
D6: Emissions from waste disposal
D8: How much of your waste would normally go to waste disposal per day? The rest is assumed to go to composting. | F8: 0.6 | G8: =ROUND(F8,2)*Introduction!F52&" ton" -> 6 ton
D11: Details | E11: Type | F11: Distance to landfill (km) | G11: kgCO₂ / tkm
D12: Disposal Site | E12: Unmanaged | F12: - | G12: -
D13: Waste | E13: food waste | F13: - | G13: -
D14: Transport | E14: light vehicle | F14: 10 | G14: =VLOOKUP(E14, Data!A:B,2, FALSE) -> 0.298
D17: Emission | E17: kg/ ton waste | F17: kgCO₂eq/ ton waste | G17: tonCO₂eq/ year
D18: Transport | E18: - | F18: =G14*F14*F8*(5/3) -> 2.98 | G18: =F18*Introduction!F52*F8*365/1000 -> 6.5262
D19: Methane (CH₄) | E19: =INDEX(Data!B69:E70, MATCH(E13, Data!A69:A70, 0), MATCH(E12, Data!B68:E68, 0))*F8 -> 25.416 | F19: =E19*27 -> 686.232 | G19: =F19*Introduction!F52*F8*365/1000 -> 1502.84808
D20: Total emission landfill | F20: =SUM(F18:F19) -> 689.212 | G20: =SUM(G18:G19) -> 1509.37428
D22: Emissions from composting
D24: Amount of waste to composting /day | F24: =Introduction!F52*(1-F8) -> 4 | G24: ton
D26: Details | E26: Type | F26: Distance to compost (km) | G26: kgCO₂ / km
D27: Waste | E27: =E13 -> food waste | F27: - | G27: ="-" -> -
D28: Transport | E28: light vehicle | F28: 10 | G28: =VLOOKUP(E28, Data!A:B,2, FALSE) -> 0.298
D30: Emission | E30: kg / ton waste | F30: kgCO₂ / ton waste | G30: ton CO₂ / year
D31: Methane (CH₄) | E31: =VLOOKUP(E27,Data!A77:D78,2,)*(1-F8)/1000 -> 0.8 | F31: =E31*27 -> 21.6 | G31: =F31*Introduction!F52*365/1000 -> 78.84
D32: N₂O | E32: =VLOOKUP(E27,Data!A77:D78,4,)*(1-F8)/1000 -> 0.08 | F32: =E32*273 -> 21.84 | G32: =F32*Introduction!F52*365/1000 -> 79.716
D33: Transport | E33: - | F33: =G28*F28*(5/3)*(1-F8) -> 1.986666667 | G33: =F33*Introduction!F52*365/1000 -> 7.251333333
D34: Total emission compost | F34: =SUM(F31:F33) -> 45.42666667 | G34: =SUM(G31:G33) -> 165.8073333
D36: Total Avoided GHG Emissions: | F36: kgCO₂eq/ ton waste : | G36: tonCO₂eq/ year :
F37: =SUM(F20,F34) -> 734.6386667 | G37: =SUM(G20,G34) -> 1675.181613
C40: Emissions reduction by substituting conventional animal feed with BSF larvae is NOT considered in this tool. However below are some indicative values of emissions from conventional animal feed production
D42: Emisssions from production of fishmeal | E42: 0.5 - 1.0 kg CO₂-eq per kg | F42: Anchoveta Fishmeal (Peru/Chile, main global source) | G42: (factory gate, including fishing and processing). Source: IFFO (International Fishmeal and Fish Oil Organisation).
D43: Emisssions from production of soybean meal | E43: 0.4 – 0.7 kg CO₂-eq per kg | F43: Without Land-Use Change | G43: (processing + farming + transport). NOPA / USB Life Cycle Assessment of U.S. Soybeans, Soybean Meal, and Soy Oil (2024)

Sheet Results; Emission per ton waste
D4: GHG Calculator Results
D6: All emissions in kgCO₂eq / ton waste
D8: ="Total emissions from the BSF conversion facility = "&ROUND(G31,2)&" kgCO₂eq/ton waste" -> Total emissions from the BSF conversion facility = 89.94 kgCO₂eq/ton waste
Z17: Energy
M23: Net
D31: Total emissions from BSF facility | G31: =SUM(D72,G72,J72,M72) -> 89.9358859 | H31: kgCO₂eq/ ton waste | J31: Energy emissions | M31: =SUM('Substrate Preparation Unit'!G31,'Substrate Preparation Unit'!G32,'Reproduction Unit'!G33,'Reproduction Unit'!G34,'Treatment Unit'!G22,'Processing Unit'!F9,'Processing Unit'!F10) -> 47.70706136 | N31: kgCO₂eq/ ton waste
D32: Avoided landfill emissions | G32: =-'Conventional Emissions'!F20 -> -689.212 | H32: kgCO₂eq/ ton waste | J32: Biogenic emissions | M32: =SUM('Treatment Unit'!G13,'Processing Unit'!F22) -> 35.159886 | N32: kgCO₂eq/ ton waste
D33: Avoided compost emissions | G33: =-'Conventional Emissions'!F34 -> -45.42666667 | H33: kgCO₂eq/ ton waste | J33: Emissions from inputs used | M33: ='Reproduction Unit'!G19 -> 2.0915625 | N33: kgCO₂eq/ ton waste
D34: Net avoided emissions | G34: =G32+G31+G33 -> -644.7027808 | H34: kgCO₂eq/ ton waste | J34: Transport emissions | M34: =SUM('Substrate Preparation Unit'!G13,'Substrate Preparation Unit'!G33,'Reproduction Unit'!G20) -> 4.977376042 | N34: kgCO₂eq/ ton waste
D71: Substrate Preparation | G71: Reproduction | J71: Treatment | M71: Processing
D72: ='Substrate Preparation Unit'!G37 -> 16.79545742 | G72: ='Reproduction Unit'!G38 -> 4.035434249 | J72: ='Treatment Unit'!G25 -> 20.22834255 | M72: ='Processing Unit'!F25 -> 48.87665168
D74: Waste input | E74: ='Substrate Preparation Unit'!G13 -> 4.966666667 | G74: Ventilation | H74: ='Reproduction Unit'!G33 -> 1.189638384 | J74: Biogenic CH4 | K74: ='Treatment Unit'!G11 -> 6.9849 | M74: Larvae sanitizing | N74: ='Processing Unit'!F9 -> 2.88
D75: Size reduction | E75: ='Substrate Preparation Unit'!G31 -> 0 | G75: Lighting | H75: ='Reproduction Unit'!G34 -> 0.74352399 | J75: Biogenic N2O | K75: ='Treatment Unit'!G12 -> 0.06279 | M75: Larvae drying | N75: ='Processing Unit'!F10 -> 17.88445568
D76: Mixing | E76: ='Substrate Preparation Unit'!G32 -> 11.82879075 | G76: Feed input | H76: ='Reproduction Unit'!G21 -> 2.102271875 | J76: Separation | K76: ='Treatment Unit'!G22 -> 13.18065255 | M76: Biogenic CH4 | N76: ='Processing Unit'!F20 -> 13.97844
D77: Additives input | E77: ='Substrate Preparation Unit'!G33 -> 0 | M77: Biogenic N2O | N77: ='Processing Unit'!F21 -> 14.133756

Sheet Results; Emission per year
D4: GHG Calculator Results
D6: All emission is in tonCO₂eq/ year
D8: ="Total emissions from the BSF conversion facility = "&ROUND(G31,2)&" tonCO₂eq/year" -> Total emissions from the BSF conversion facility = 328.27 tonCO₂eq/year
Z17: Energy
M23: Net
D31: Total emissions from BSF facility | G31: =SUM(D72,G72,J72,M72) -> 328.2659835 | H31: tonCO₂eq/ year | J31: Energy | M31: =SUM('Substrate Preparation Unit'!H31,'Substrate Preparation Unit'!H32,'Reproduction Unit'!H33,'Reproduction Unit'!H34,'Treatment Unit'!H22,'Processing Unit'!G9,'Processing Unit'!G10) -> 174.130774 | N31: tonCO₂eq/ year
D32: Avoided landfill emissions | G32: =-'Conventional Emissions'!G20 -> -1509.37428 | H32: tonCO₂eq/ year | J32: Biogenic | M32: =SUM('Treatment Unit'!H13,'Processing Unit'!G22) -> 128.3335839 | N32: tonCO₂eq/ year
D33: Avoided compost emissions | G33: =-'Conventional Emissions'!G34 -> -165.8073333 | H33: tonCO₂eq/ year | J33: Inputs | M33: ='Reproduction Unit'!H19 -> 7.634203125 | N33: tonCO₂eq/ year
D34: Net avoided emissions | G34: =G32+G31+G33 -> -1346.91563 | H34: tonCO₂eq/ year | J34: Transport | M34: =SUM('Substrate Preparation Unit'!H13,'Substrate Preparation Unit'!H33,'Reproduction Unit'!H20) -> 18.16742255 | N34: tonCO₂eq/ year
D71: Substrate Preparation | G71: Reproduction | J71: Treatment | M71: Processing
D72: ='Substrate Preparation Unit'!H37 -> 61.30341957 | G72: ='Reproduction Unit'!H38 -> 14.72933501 | J72: ='Treatment Unit'!H25 -> 73.83345031 | M72: ='Processing Unit'!G25 -> 178.3997786
D74: Waste input | E74: ='Substrate Preparation Unit'!H13 -> 18.12833333 | G74: Ventilation | H74: ='Reproduction Unit'!H33 -> 4.342180102 | J74: Biogenic CH4 | K74: ='Treatment Unit'!H11 -> 25.494885 | M74: Larvae sanitizing | N74: ='Processing Unit'!G9 -> 10.512
D75: Size reduction | E75: ='Substrate Preparation Unit'!H31 -> 0 | G75: Lighting | H75: ='Reproduction Unit'!H34 -> 2.713862563 | J75: Biogenic N2O | K75: ='Treatment Unit'!H12 -> 0.2291835 | M75: Larvae drying | N75: ='Processing Unit'!G10 -> 65.27826324
D76: Mixing | E76: ='Substrate Preparation Unit'!H32 -> 43.17508624 | G76: Feed input | H76: ='Reproduction Unit'!H21 -> 7.673292344 | J76: Separation | K76: ='Treatment Unit'!H22 -> 48.10938181 | M76: Biogenic CH4 | N76: ='Processing Unit'!G20 -> 51.021306
D77: Additives input | E77: ='Substrate Preparation Unit'!H33 -> 0 | M77: Biogenic N2O | N77: ='Processing Unit'!G21 -> 51.5882094

Sheet Data
A2: Substrate Preparation Unit
A3: TRANSPORT
A4: options | B4: kgCO2eq/ ton waste
A5: light vehicle | B5: 0.298
A6: medium truck | B6: 0.194
A7: WASTE SIZE REDUCTION
A8: options | B8: kWh/ ton waste
A9: electric shredder | B9: 14.7
A10: manual | B10: 0
A11: SUBSTRATE MIXING
A12: options | B12: kWh/ ton waste
A13: industrial mixer | B13: 17.5
A14: manual | B14: 0
A15: BULKING AGENT
A16: options
A17: Any additives added? | B17: Yes
B18: No
A19: Reproduction Unit
A20: FEED TYPE
A21: options | B21: kgCO2eq / kg
A22: maize grain feed | B22: 0.644
A23: chicken feed (animal mix) | B23: 0.97
A24: chicken feed (vegetarian mix) | B24: 1.139
A25: feed:eggs ratio | B25: kg feed / kg eggs
A26: kg feed / kg eggs | B26: 37.5
A27: substrate:eggs ratio | B27: g eggs / ton feed
A28: g eggs / ton feed | B28: 57.5
A29: INFRASTRUCTURE
A30: options | B30: kWh / ton waste
A31: ventilation | B31: 1.76
A32: lighting | B32: 1.1
A34: Treatment Unit
A35: BSFL TREATMENT
A36: options | B36: gCH4 / ton waste | D36: gN2O / ton waste
A37: mixed food waste | B37: 1.313 | D37: 3.484
A38: pig manure (pure) | B38: 258.7 | D38: 0.23
A39: pig manure + corncob | B39: 111.14 | D39: 0.22
A40: SEPARATION
A41: options | B41: kWh / ton waste
A42: automated sieve | B42: 19.5
A43: pressurized water | B43: 2.93
A44: manual sieve | B44: 0
A46: Processing Unit
A47: SANITIZING
A48: options | B48: kgCO2eq / ton waste
A49: boiling | B49: 2.88
A50: washing | B50: 0
A51: DRYING
A52: options | B52: kgCO2/ton waste | D52: kWh/ton raw substrate
A53: oven | B53: =D53*Introduction!H51 -> 17.88445568 | D53: 26.459
A54: natural gas | B54: 1.794
A55: sun drying | B55: 0
A56: COMPOST
A57: options | B57: kg / ton waste | D57: gCH4 / ton residue | F57: gN2O / ton residue
A58: food waste residue | B58: 258.86 | D58: 2000 | F58: 200
A59: pig manure residue | B59: 476.67 | D59: 2820 | F59: 354
A61: Avoided Emissions Unit
A62: TRANSPORT
A63: options | B63: kgCO2eq/ ton waste
A64: light vehicle | B64: 0.298
A65: medium truck | B65: 0.194
A66: LANDFILL
A67: options | B67: kgCH4 / ton waste
A68: Emissions in kgCH4 / ton waste | B68: Managed well (semi-aerobic) | C68: Managed well (active aeration) | D68: Managed poorly | E68: Unmanaged
A69: food waste | B69: 35.3 | C69: 28.24 | D69: 49.42 | E69: 42.36
A70: pig manure | B70: 40.007 | C70: 32.005 | D70: 56.009 | E70: 48.008
A73: Percentage to landfill | B73: 0 | C73: 0.1 | D73: 0.2 | E73: 0.3 | F73: 0.4 | G73: 0.5 | H73: 0.6 | I73: 0.7 | J73: 0.8 | K73: 0.9 | L73: 1
A75: COMPOST
A76: options | B76: gCH4 / ton waste | D76: gN2O / ton waste
A77: food waste | B77: 2000 | D77: 200
A78: pig manure | B78: 2820 | D78: 354

Sheet ElecMix
A1: Country | B1: gCO2/kWh | C1: kgCO2/kWh
A2: Afghanistan | B2: 132.53012 | C2: =B2/1000 -> 0.13253012
A3: Africa | B3: 554.15314 | C3: =B3/1000 -> 0.55415314
A4: Albania | B4: 24.285715 | C4: 0.024285715
A5: Algeria | B5: 634.611 | C5: 0.634611
A6: American Samoa | B6: 611.1111 | C6: 0.6111111
A7: Angola | B7: 174.73436 | C7: 0.17473436
A8: Antigua and Barbuda | B8: 611.1111 | C8: 0.6111111
A9: Argentina | B9: 354.10287 | C9: 0.35410287
A10: Armenia | B10: 264.53815 | C10: 0.26453815
A11: Aruba | B11: 561.2245 | C11: 0.5612245
A12: Asia | B12: 594.40784 | C12: 0.59440784
A13: Australia | B13: 548.69226 | C13: 0.54869226
A14: Austria | B14: 110.81243 | C14: 0.11081243
A15: Azerbaijan | B15: 671.38904 | C15: 0.67138904
A16: Bahamas | B16: 660.0986 | C16: 0.6600986
A17: Bahrain | B17: 904.6145 | C17: 0.9046145
A18: Bangladesh | B18: 691.4112 | C18: 0.6914112
A19: Barbados | B19: 605.5046 | C19: 0.6055046
A20: Belarus | B20: 441.74 | C20: 0.44174
A21: Belgium | B21: 138.1068 | C21: 0.1381068
A22: Belize | B22: 225.80646 | C22: 0.22580646
A23: Benin | B23: 584.0708 | C23: 0.5840708
A24: Bermuda | B24: 650.79364 | C24: 0.65079364
A25: Bhutan | B25: 23.333334 | C25: 0.023333334
A26: Bolivia | B26: 531.68726 | C26: 0.53168726
A27: Bosnia and Herzegovina | B27: 600.00006 | C27: 0.60000006
A28: Botswana | B28: 847.9087 | C28: 0.8479087
A29: Brazil | B29: 98.34824 | C29: 0.09834824
A30: British Virgin Islands | B30: 647.0588 | C30: 0.6470588
A31: Brunei | B31: 893.913 | C31: 0.893913
A32: Bulgaria | B32: 335.3338 | C32: 0.3353338
A33: Burkina Faso | B33: 467.5325 | C33: 0.4675325
A34: Burundi | B34: 250.00002 | C34: 0.25000002
A35: Cambodia | B35: 417.70712 | C35: 0.41770712
A36: Cameroon | B36: 305.4187 | C36: 0.3054187
A37: Canada | B37: 170.04251 | C37: 0.17004251
A38: Cape Verde | B38: 558.1395 | C38: 0.5581395
A39: Cayman Islands | B39: 642.8571 | C39: 0.6428571
A40: Central African Republic | B40: 0 | C40: 0
A41: Chad | B41: 628.5714 | C41: 0.6285714
A42: Chile | B42: 291.1135 | C42: 0.2911135
A43: China | B43: 582.31696 | C43: 0.58231696
A44: Colombia | B44: 259.51117 | C44: 0.25951117
A45: Comoros | B45: 642.8572 | C45: 0.6428572
A46: Congo | B46: 700 | C46: 0.7
A47: Cook Islands | B47: 250 | C47: 0.25
A48: Costa Rica | B48: 53.377815 | C48: 0.053377815
A49: Cote d'Ivoire | B49: 393.8849 | C49: 0.3938849
A50: Croatia | B50: 204.96161 | C50: 0.20496161
A51: Cuba | B51: 637.6096 | C51: 0.6376096
A52: Cyprus | B52: 534.3229 | C52: 0.5343229
A53: Czechia | B53: 449.72433 | C53: 0.44972433
A54: Democratic Republic of Congo | B54: 24.456524 | C54: 0.024456524
A55: Denmark | B55: 151.6503 | C55: 0.1516503
A56: Djibouti | B56: 692.3078 | C56: 0.6923078
A57: Dominica | B57: 529.4118 | C57: 0.5294118
A58: Dominican Republic | B58: 580.7799 | C58: 0.5807799
A59: East Timor | B59: 666.6667 | C59: 0.6666667
A60: Ecuador | B60: 150.22354 | C60: 0.15022354
A61: Egypt | B61: 570.30554 | C61: 0.57030554
A62: El Salvador | B62: 271.46817 | C62: 0.27146817
A63: Equatorial Guinea | B63: 591.83673 | C63: 0.59183673
A64: Eritrea | B64: 631.5789 | C64: 0.6315789
A65: Estonia | B65: 416.6667 | C65: 0.4166667
A66: Eswatini | B66: 172.41379 | C66: 0.17241379
A67: Ethiopia | B67: 24.643318 | C67: =B67/1000 -> 0.024643318
A68: Europe | B68: 318.78186 | C68: 0.31878186
A69: European Union (27) | B69: 291.85495 | C69: 0.29185495
A70: Falkland Islands | B70: 500 | C70: 0.5
A71: Faroe Islands | B71: 404.76193 | C71: 0.40476193
A72: Fiji | B72: 288.46158 | C72: 0.28846158
A73: Finland | B73: 79.158325 | C73: 0.079158325
A74: France | B74: 56.03859 | C74: 0.05603859
A75: French Polynesia | B75: 442.85715 | C75: 0.44285715
A76: Gabon | B76: 491.59662 | C76: 0.49159662
A77: Gambia | B77: 666.6667 | C77: 0.6666667
A78: Georgia | B78: 167.59389 | C78: 0.16759389
A79: Germany | B79: 380.95047 | C79: 0.38095047
A80: Ghana | B80: 484.00003 | C80: 0.48400003
A81: Gibraltar | B81: 600.00006 | C81: 0.60000006
A82: Greece | B82: 336.57352 | C82: 0.33657352
A83: Greenland | B83: 178.57143 | C83: 0.17857143
A84: Grenada | B84: 640 | C84: 0.64
A85: Guam | B85: 622.8572 | C85: 0.6228572
A86: Guatemala | B86: 328.26752 | C86: 0.32826752
A87: Guinea | B87: 236.84212 | C87: 0.23684212
A88: Guinea-Bissau | B88: 625 | C88: 0.625
A89: Guyana | B89: 640.3509 | C89: 0.6403509
A90: Haiti | B90: 567.3077 | C90: 0.5673077
A91: Honduras | B91: 282.26477 | C91: 0.28226477
A92: Hong Kong | B92: 699.49915 | C92: 0.69949915
A93: Hungary | B93: 204.18994 | C93: 0.20418994
A94: Iceland | B94: 27.679918 | C94: 0.027679918
A95: India | B95: 713.4407 | C95: 0.7134407
A96: Indonesia | B96: 675.9309 | C96: 0.6759309
A97: Iran | B97: 655.12494 | C97: 0.65512494
A98: Iraq | B98: 688.81396 | C98: 0.68881396
A99: Ireland | B99: 290.805 | C99: 0.290805
A100: Israel | B100: 582.9271 | C100: 0.5829271
A101: Italy | B101: 330.71823 | C101: 0.33071823
A102: Jamaica | B102: 555.55554 | C102: 0.55555554
A103: Japan | B103: 485.39236 | C103: 0.48539236
A104: Jordan | B104: 540.92365 | C104: 0.54092365
A105: Kazakhstan | B105: 821.3909 | C105: 0.8213909
A106: Kenya | B106: 70.491806 | C106: 0.070491806
A107: Kiribati | B107: 666.6667 | C107: 0.6666667
A108: Kosovo | B108: 894.6541 | C108: 0.8946541
A109: Kuwait | B109: 649.1634 | C109: 0.6491634
A110: Kyrgyzstan | B110: 147.2924 | C110: 0.1472924
A111: Laos | B111: 265.50595 | C111: 0.26550595
A112: Latin America and Caribbean (Ember) | B112: 258.5933 | C112: 0.2585933
A113: Latvia | B113: 123.2 | C113: 0.1232
A114: Lebanon | B114: 599.005 | C114: 0.599005
A115: Lesotho | B115: 20 | C115: 0.02
A116: Liberia | B116: 227.84811 | C116: 0.22784811
A117: Libya | B117: 818.6922 | C117: 0.8186922
A118: Lithuania | B118: 160.07195 | C118: 0.16007195
A119: Luxembourg | B119: 105.26315 | C119: 0.10526315
A120: Macao | B120: 448.97958 | C120: 0.44897958
A121: Madagascar | B121: 436.44064 | C121: 0.43644064
A122: Malawi | B122: 66.66667 | C122: 0.06666667
A123: Malaysia | B123: 605.83136 | C123: 0.60583136
A124: Maldives | B124: 611.7647 | C124: 0.6117647
A125: Mali | B125: 407.99997 | C125: 0.40799997
A126: Malta | B126: 459.14395 | C126: 0.45914395
A127: Mauritania | B127: 464.7059 | C127: 0.4647059
A128: Mauritius | B128: 632.47864 | C128: 0.63247864
A129: Mexico | B129: 507.24512 | C129: 0.50724512
A130: Moldova | B130: 643.4635 | C130: 0.6434635
A131: Mongolia | B131: 775.30865 | C131: =B131/1000 -> 0.77530865
A132: Montenegro | B132: 417.07318 | C132: 0.41707318
A133: Montserrat | B133: 1000 | C133: 1
A134: Morocco | B134: 630.01416 | C134: 0.63001416
A135: Mozambique | B135: 135.64668 | C135: 0.13564668
A136: Myanmar | B136: 398.89804 | C136: 0.39889804
A137: Namibia | B137: 59.25926 | C137: 0.05925926
A138: Nauru | B138: 750 | C138: 0.75
A139: Nepal | B139: 24.43992 | C139: 0.02443992
A140: Netherlands | B140: 267.62177 | C140: 0.26762177
A141: New Caledonia | B141: 660.5839 | C141: 0.6605839
A142: New Zealand | B142: 112.75831 | C142: 0.11275831
A143: Nicaragua | B143: 265.11627 | C143: 0.26511627
A144: Niger | B144: 670.88605 | C144: 0.67088605
A145: Nigeria | B145: 523.24725 | C145: 0.52324725
A146: North America | B146: 365.84262 | C146: 0.36584262
A147: North Korea | B147: 389.58707 | C147: 0.38958707
A148: North Macedonia | B148: 565.3451 | C148: 0.5653451
A149: Norway | B149: 30.080084 | C149: 0.030080084
A150: Oceania | B150: 507.6928 | C150: 0.5076928
A151: Oman | B151: 564.63495 | C151: 0.56463495
A152: Pakistan | B152: 440.6085 | C152: 0.4406085
A153: Palestine | B153: 516.129 | C153: 0.516129
A154: Panama | B154: 161.67665 | C154: 0.16167665
A155: Papua New Guinea | B155: 507.24634 | C155: 0.50724634
A156: Paraguay | B156: 23.75506 | C156: 0.02375506
A157: Peru | B157: 266.47754 | C157: 0.26647754
A158: Philippines | B158: 610.68835 | C158: 0.61068835
A159: Poland | B159: 661.92584 | C159: 0.66192584
A160: Portugal | B160: 165.55257 | C160: 0.16555257
A161: Puerto Rico | B161: 678.7377 | C161: 0.6787377
A162: Qatar | B162: 602.5005 | C162: 0.6025005
A163: Romania | B163: 240.58281 | C163: 0.24058281
A164: Russia | B164: 441.03885 | C164: 0.44103885
A165: Rwanda | B165: 316.32654 | C165: 0.31632654
A166: Saint Helena | B166: 1000 | C166: 1
A167: Saint Kitts and Nevis | B167: 636.36365 | C167: 0.63636365
A168: Saint Lucia | B168: 666.6666 | C168: 0.6666666
A169: Saint Pierre and Miquelon | B169: 600 | C169: 0.6
A170: Saint Vincent and the Grenadines | B170: 529.4118 | C170: 0.5294118
A171: Samoa | B171: 473.68423 | C171: 0.47368423
A172: Sao Tome and Principe | B172: 642.8572 | C172: 0.6428572
A173: Saudi Arabia | B173: 706.7905 | C173: 0.7067905
A174: Senegal | B174: 511.59793 | C174: 0.51159793
A175: Serbia | B175: 636.06226 | C175: 0.63606226
A176: Seychelles | B176: 564.5161 | C176: 0.5645161
A177: Sierra Leone | B177: 50 | C177: 0.05
A178: Singapore | B178: 470.7832 | C178: 0.4707832
A179: Slovakia | B179: 116.773544 | C179: 0.116773544
A180: Slovenia | B180: 231.27463 | C180: 0.23127463
A181: Solomon Islands | B181: 700 | C181: 0.7
A182: Somalia | B182: 578.9473 | C182: 0.5789473
A183: South Africa | B183: 707.6856 | C183: 0.7076856
A184: South America | B184: 179.66322 | C184: 0.17966322
A185: South Korea | B185: 430.56708 | C185: 0.43056708
A186: South Sudan | B186: 629.0322 | C186: 0.6290322
A187: Spain | B187: 174.05005 | C187: 0.17405005
A188: Sri Lanka | B188: 509.78134 | C188: 0.50978134
A189: Sudan | B189: 263.15787 | C189: 0.26315787
A190: Suriname | B190: 349.28232 | C190: 0.34928232
A191: Sweden | B191: 40.694878 | C191: 0.040694878
A192: Switzerland | B192: 34.842716 | C192: 0.034842716
A193: Syria | B193: 701.6607 | C193: 0.7016607
A194: Taiwan | B194: 642.3775 | C194: 0.6423775
A195: Tajikistan | B195: 116.85825 | C195: =B195/1000 -> 0.11685825
A196: Tanzania | B196: 339.2461 | C196: 0.3392461
A197: Thailand | B197: 549.5827 | C197: 0.5495827
A198: Togo | B198: 443.1818 | C198: 0.4431818
A199: Tonga | B199: 625 | C199: 0.625
A200: Trinidad and Tobago | B200: 681.5286 | C200: 0.6815286
... 20 more rows
